[Event "Titled Tuesday Blitz April 18 Late 2023"]
[White "reevecanada"]
[Black "lluiss"]
[WhiteElo "2444"]
[BlackElo "2297"]
[Result "1-0"]
[Round "04"]
[TimeControl "180+2"]
[Date "2023.04.18"]
[WhiteClock "0:00:31"]
[BlackClock "0:00:01"]

1. Nf3 {[%clk 0:02:58]}  Nf6 {[%clk 0:02:59]} 2. e3 {[%clk 0:02:58]}  g6 {[%clk 0:02:57]} 3. Be2 {[%clk 0:02:58]}  Bg7 {[%clk 0:02:57]} 4. O-O {[%clk 0:02:58]}  O-O {[%clk 0:02:58]} 5. d3 {[%clk 0:02:59]}  d5 {[%clk 0:02:57]} 6. Nbd2 {[%clk 0:02:59]}  c5 {[%clk 0:02:57]} 7. Rb1 {[%clk 0:03:00]}  Nc6 {[%clk 0:02:57]} 8. c4 {[%clk 0:03:00]}  h6 {[%clk 0:02:54]} 9. b3 {[%clk 0:03:00]}  e5 {[%clk 0:02:44]} 10. Bb2 {[%clk 0:02:58]}  Re8 {[%clk 0:02:44]} 11. Rc1 {[%clk 0:02:56]}  e4 {[%clk 0:02:39]} 12. Ne1 {[%clk 0:02:53]}  exd3 {[%clk 0:02:26]} 13. Nxd3 {[%clk 0:02:50]}  b6 {[%clk 0:02:25]} 14. cxd5 {[%clk 0:02:48]}  Nxd5 {[%clk 0:02:23]} 15. Bxg7 {[%clk 0:02:46]}  Kxg7 {[%clk 0:02:22]} 16. Nc4 {[%clk 0:02:45]}  Bb7 {[%clk 0:02:20]} 17. Bf3 {[%clk 0:02:43]}  Nf6 {[%clk 0:01:47]} 18. Qc2 {[%clk 0:02:37]}  Nb4 {[%clk 0:01:35]} 19. Nxb4 {[%clk 0:02:36]}  Bxf3 {[%clk 0:01:34]} 20. gxf3 {[%clk 0:02:36]}  cxb4 {[%clk 0:01:34]} 21. Qb2 {[%clk 0:02:34]}  Kg8 {[%clk 0:01:28]} 22. Rfd1 {[%clk 0:02:33]}  Qe7 {[%clk 0:01:28]} 23. Nd6 {[%clk 0:02:30]}  Red8 {[%clk 0:01:23]} 24. Nb5 {[%clk 0:02:25]}  a6 {[%clk 0:01:15]} 25. Nd4 {[%clk 0:02:20]}  Qe5 {[%clk 0:01:10]} 26. f4 {[%clk 0:02:11]}  Qh5 {[%clk 0:01:08]} 27. Nc6 {[%clk 0:02:08]}  Ng4 {[%clk 0:01:07]} 28. Rxd8+ {[%clk 0:01:48]}  Rxd8 {[%clk 0:01:05]} 29. Nxd8 {[%clk 0:01:47]}  Qxh2+ {[%clk 0:01:03]} 30. Kf1 {[%clk 0:01:42]}  Nxe3+ {[%clk 0:00:56]} 31. Ke2 {[%clk 0:01:39]}  Ng4 {[%clk 0:00:53]} 32. Qd4 {[%clk 0:01:33]}  Qh5 {[%clk 0:00:44]} 33. f3 {[%clk 0:01:03]}  Qh2+ {[%clk 0:00:41]} 34. Kd1 {[%clk 0:01:02]}  Nf2+ {[%clk 0:00:32]} 35. Kc2 {[%clk 0:01:00]}  Ne4+ {[%clk 0:00:26]} 36. Kb1 {[%clk 0:00:56]}  Nc3+ {[%clk 0:00:25]} 37. Rxc3 {[%clk 0:00:55]}  bxc3 {[%clk 0:00:25]} 38. Qxc3 {[%clk 0:00:56]}  Qxf4 {[%clk 0:00:24]} 39. Nc6 {[%clk 0:00:55]}  h5 {[%clk 0:00:12]} 40. Ka1 {[%clk 0:00:55]}  Kh7 {[%clk 0:00:09]} 41. a4 {[%clk 0:00:39]}  h4 {[%clk 0:00:09]} 42. Ne7 {[%clk 0:00:34]}  h3 {[%clk 0:00:05]} 43. Nd5 {[%clk 0:00:33]}  Qf5 {[%clk 0:00:02]} 44. Nf6+ {[%clk 0:00:33]}  Kh6 {[%clk 0:00:03]} 45. Ng4+ {[%clk 0:00:33]}  Kh5 {[%clk 0:00:01]} 46. Qh8+ {[%clk 0:00:31]}  Kg5 {[%clk 0:00:01]} 47. Qh6# {[%clk 0:00:31]} 1-0


[Site "https://www.chess.com"]

[Event "Titled Tuesday Blitz April 18 Late 2023"]
[White "Chabris, Christopher"]
[Black "Prydun, Andriy"]
[WhiteFideId "2005263"]
[BlackFideId "14145898"]
[WhiteElo "2293"]
[BlackElo "2164"]
[Result "1-0"]
[Round "04"]
[TimeControl "180+2"]
[Date "2023.04.18"]
[WhiteClock "0:00:18"]
[BlackClock "0:00:16"]

1. e4 {[%clk 0:03:00]}  d5 {[%clk 0:02:36]} 2. exd5 {[%clk 0:02:59]}  Qxd5 {[%clk 0:02:37]} 3. Nc3 {[%clk 0:03:00]}  Qd8 {[%clk 0:02:37]} 4. d4 {[%clk 0:03:00]}  Nf6 {[%clk 0:02:35]} 5. Nf3 {[%clk 0:03:00]}  c6 {[%clk 0:02:35]} 6. Bc4 {[%clk 0:02:58]}  e6 {[%clk 0:02:30]} 7. O-O {[%clk 0:02:53]}  Nbd7 {[%clk 0:02:29]} 8. Re1 {[%clk 0:02:52]}  Be7 {[%clk 0:02:29]} 9. a4 {[%clk 0:02:45]}  O-O {[%clk 0:02:26]} 10. a5 {[%clk 0:02:45]}  Nd5 {[%clk 0:02:22]} 11. Ne4 {[%clk 0:02:40]}  Bb4 {[%clk 0:02:21]} 12. Bd2 {[%clk 0:02:34]}  Be7 {[%clk 0:02:19]} 13. Ng3 {[%clk 0:02:20]}  b6 {[%clk 0:02:13]} 14. Bd3 {[%clk 0:02:07]}  c5 {[%clk 0:02:00]} 15. axb6 {[%clk 0:01:57]}  N5xb6 {[%clk 0:01:59]} 16. Be4 {[%clk 0:01:52]}  Rb8 {[%clk 0:01:57]} 17. Rxa7 {[%clk 0:01:46]}  Nc4 {[%clk 0:01:52]} 18. Bf4 {[%clk 0:01:07]}  Rxb2 {[%clk 0:01:46]} 19. Bc7 {[%clk 0:00:52]}  Qe8 {[%clk 0:01:46]} 20. Qd3 {[%clk 0:00:51]}  Ncb6 {[%clk 0:01:03]} 21. Bxh7+ {[%clk 0:00:51]}  Kh8 {[%clk 0:01:04]} 22. Ne5 {[%clk 0:00:42]}  c4 {[%clk 0:00:54]} 23. Qc3 {[%clk 0:00:31]}  Bb4 {[%clk 0:00:47]} 24. Qxb2 {[%clk 0:00:32]}  Bxe1 {[%clk 0:00:48]} 25. Bxb6 {[%clk 0:00:24]}  Nxe5 {[%clk 0:00:43]} 26. dxe5 {[%clk 0:00:21]}  Kxh7 {[%clk 0:00:43]} 27. Bc5 {[%clk 0:00:20]}  Rh8 {[%clk 0:00:18]} 28. Qd4 {[%clk 0:00:20]}  Qd7 {[%clk 0:00:16]} 29. Rxd7 {[%clk 0:00:18]} 1-0


[Site "https://www.chess.com"]

[Event "Titled Tuesday Blitz April 18 Late 2023"]
[White "Kubatko, Ivan"]
[Black "Smith, Garrett L"]
[WhiteFideId "24111473"]
[BlackFideId "2024829"]
[WhiteElo "2285"]
[BlackElo "2295"]
[Result "1-0"]
[Round "04"]
[TimeControl "180+2"]
[Date "2023.04.18"]
[WhiteClock "0:00:18"]
[BlackClock "0:00:53"]

1. e4 {[%clk 0:03:00]}  c5 {[%clk 0:02:59]} 2. c3 {[%clk 0:03:00]}  d5 {[%clk 0:02:59]} 3. exd5 {[%clk 0:03:01]}  Qxd5 {[%clk 0:03:00]} 4. d4 {[%clk 0:03:01]}  Nc6 {[%clk 0:03:00]} 5. Nf3 {[%clk 0:03:01]}  Bf5 {[%clk 0:03:01]} 6. Be3 {[%clk 0:02:58]}  Nf6 {[%clk 0:03:00]} 7. Be2 {[%clk 0:02:29]}  e6 {[%clk 0:02:54]} 8. O-O {[%clk 0:02:27]}  cxd4 {[%clk 0:02:50]} 9. Nxd4 {[%clk 0:02:27]}  Nxd4 {[%clk 0:02:43]} 10. Bxd4 {[%clk 0:01:58]}  Qd7 {[%clk 0:01:48]} 11. Qb3 {[%clk 0:01:22]}  a6 {[%clk 0:01:45]} 12. Nd2 {[%clk 0:01:02]}  Be7 {[%clk 0:01:43]} 13. Bf3 {[%clk 0:00:52]}  O-O {[%clk 0:01:29]} 14. Qxb7 {[%clk 0:00:48]}  Qxb7 {[%clk 0:01:29]} 15. Bxb7 {[%clk 0:00:49]}  Rab8 {[%clk 0:01:30]} 16. Bxa6 {[%clk 0:00:48]}  Rxb2 {[%clk 0:01:30]} 17. Nc4 {[%clk 0:00:45]}  Rbb8 {[%clk 0:01:23]} 18. Ne5 {[%clk 0:00:42]}  Be4 {[%clk 0:01:17]} 19. a4 {[%clk 0:00:41]}  Rfd8 {[%clk 0:01:14]} 20. a5 {[%clk 0:00:38]}  Ba8 {[%clk 0:01:12]} 21. Be2 {[%clk 0:00:27]}  Nd5 {[%clk 0:01:12]} 22. a6 {[%clk 0:00:21]}  Nf4 {[%clk 0:01:07]} 23. Bf3 {[%clk 0:00:21]}  Bxf3 {[%clk 0:01:05]} 24. Nxf3 {[%clk 0:00:19]}  Rdc8 {[%clk 0:00:53]} 25. Be5 {[%clk 0:00:18]} 1-0


[Site "https://www.chess.com"]

[Event "Titled Tuesday Blitz April 18 Late 2023"]
[White "Onslow, Alfie"]
[Black "WindWhistler11"]
[WhiteFideId "436976"]
[WhiteElo "2114"]
[BlackElo "2433"]
[Result "0-1"]
[Round "04"]
[TimeControl "180+2"]
[Date "2023.04.18"]
[WhiteClock "0:00:01"]
[BlackClock "0:00:02"]

1. Nf3 {[%clk 0:02:58]}  Nf6 {[%clk 0:02:58]} 2. c4 {[%clk 0:02:55]}  e6 {[%clk 0:02:46]} 3. g3 {[%clk 0:02:54]}  d5 {[%clk 0:02:45]} 4. Bg2 {[%clk 0:02:55]}  Be7 {[%clk 0:02:43]} 5. d4 {[%clk 0:02:55]}  O-O {[%clk 0:02:43]} 6. O-O {[%clk 0:02:55]}  a6 {[%clk 0:02:40]} 7. Qc2 {[%clk 0:02:53]}  Nc6 {[%clk 0:02:38]} 8. Rd1 {[%clk 0:02:53]}  Nb4 {[%clk 0:02:36]} 9. Qb3 {[%clk 0:02:50]}  Bd7 {[%clk 0:02:28]} 10. Ne5 {[%clk 0:02:50]}  dxc4 {[%clk 0:02:26]} 11. Nxc4 {[%clk 0:02:36]}  Qe8 {[%clk 0:02:19]} 12. Nc3 {[%clk 0:02:35]}  Nfd5 {[%clk 0:02:19]} 13. e4 {[%clk 0:02:31]}  Nxc3 {[%clk 0:02:18]} 14. Qxc3 {[%clk 0:02:32]}  c5 {[%clk 0:02:01]} 15. d5 {[%clk 0:02:22]}  exd5 {[%clk 0:01:58]} 16. exd5 {[%clk 0:02:13]}  Bf6 {[%clk 0:01:48]} 17. Qf3 {[%clk 0:02:13]}  Nc2 {[%clk 0:01:46]} 18. Nb6 {[%clk 0:02:00]}  Nxa1 {[%clk 0:01:37]} 19. Nxa8 {[%clk 0:01:50]}  Qxa8 {[%clk 0:01:38]} 20. Qd3 {[%clk 0:01:48]}  Qc8 {[%clk 0:01:34]} 21. Qb1 {[%clk 0:01:47]}  Bg4 {[%clk 0:01:25]} 22. Re1 {[%clk 0:01:36]}  c4 {[%clk 0:01:06]} 23. Bd2 {[%clk 0:01:14]}  Nb3 {[%clk 0:00:54]} 24. axb3 {[%clk 0:01:13]}  cxb3 {[%clk 0:00:55]} 25. Bc3 {[%clk 0:01:04]}  Bxc3 {[%clk 0:00:51]} 26. Rc1 {[%clk 0:01:02]}  Bf5 {[%clk 0:00:42]} 27. Be4 {[%clk 0:01:02]}  Bxe4 {[%clk 0:00:36]} 28. Qxe4 {[%clk 0:01:03]}  Qd7 {[%clk 0:00:19]} 29. Rxc3 {[%clk 0:01:02]}  Qb5 {[%clk 0:00:17]} 30. Qd3 {[%clk 0:00:52]}  Rd8 {[%clk 0:00:16]} 31. Qxb5 {[%clk 0:00:30]}  axb5 {[%clk 0:00:16]} 32. Rc5 {[%clk 0:00:30]}  b4 {[%clk 0:00:14]} 33. Rb5 {[%clk 0:00:30]}  g6 {[%clk 0:00:07]} 34. Rxb7 {[%clk 0:00:21]}  Rxd5 {[%clk 0:00:07]} 35. Rxb4 {[%clk 0:00:21]}  Rd3 {[%clk 0:00:05]} 36. Kf1 {[%clk 0:00:20]}  Rd1+ {[%clk 0:00:04]} 37. Ke2 {[%clk 0:00:21]}  Rh1 {[%clk 0:00:05]} 38. h4 {[%clk 0:00:20]}  Rc1 {[%clk 0:00:03]} 39. Rxb3 {[%clk 0:00:19]}  Rc2+ {[%clk 0:00:04]} 40. Kf3 {[%clk 0:00:19]}  Kg7 {[%clk 0:00:04]} 41. Rb6 {[%clk 0:00:19]}  h5 {[%clk 0:00:04]} 42. b4 {[%clk 0:00:19]}  Rc3+ {[%clk 0:00:04]} 43. Ke4 {[%clk 0:00:19]}  Rc2 {[%clk 0:00:05]} 44. f3 {[%clk 0:00:19]}  Rb2 {[%clk 0:00:05]} 45. b5 {[%clk 0:00:18]}  Rg2 {[%clk 0:00:06]} 46. Kf4 {[%clk 0:00:18]}  Rb2 {[%clk 0:00:06]} 47. Rb8 {[%clk 0:00:18]}  Rb4+ {[%clk 0:00:07]} 48. Ke5 {[%clk 0:00:17]}  Rb3 {[%clk 0:00:07]} 49. Ke4 {[%clk 0:00:13]}  f5+ {[%clk 0:00:06]} 50. Kf4 {[%clk 0:00:13]}  Rb4+ {[%clk 0:00:04]} 51. Kg5 {[%clk 0:00:12]}  Rb3 {[%clk 0:00:01]} 52. Rb7+ {[%clk 0:00:12]}  Kf8 {[%clk 0:00:01]} 53. Kxg6 {[%clk 0:00:02]}  Rxf3 {[%clk 0:00:02]} 54. Kf6 {[%clk 0:00:01]}  Ke8 {[%clk 0:00:02]} 55. b6 {[%clk 0:00:01]}  Kd8 {[%clk 0:00:02]} 0-1


[Site "https://www.chess.com"]

[Event "Titled Tuesday Blitz April 18 Late 2023"]
[White "Garmash, Aliona"]
[Black "Marczuk, Dominik"]
[WhiteFideId "34127620"]
[BlackFideId "1111264"]
[WhiteElo "1959"]
[BlackElo "2174"]
[Result "1-0"]
[Round "04"]
[TimeControl "180+2"]
[Date "2023.04.18"]
[WhiteClock "0:00:12"]
[BlackClock "0:00:01"]

1. d4 {[%clk 0:03:00]}  Nf6 {[%clk 0:02:58]} 2. c4 {[%clk 0:03:00]}  g6 {[%clk 0:02:55]} 3. Nc3 {[%clk 0:02:59]}  Bg7 {[%clk 0:02:55]} 4. e4 {[%clk 0:03:00]}  d6 {[%clk 0:02:55]} 5. Nf3 {[%clk 0:03:00]}  O-O {[%clk 0:02:56]} 6. Be2 {[%clk 0:03:01]}  e5 {[%clk 0:02:56]} 7. Be3 {[%clk 0:03:01]}  Ng4 {[%clk 0:02:55]} 8. Bg5 {[%clk 0:03:01]}  Qe8 {[%clk 0:02:52]} 9. h3 {[%clk 0:02:23]}  Nf6 {[%clk 0:02:45]} 10. d5 {[%clk 0:02:19]}  h6 {[%clk 0:02:42]} 11. Be3 {[%clk 0:02:19]}  a5 {[%clk 0:02:39]} 12. Nd2 {[%clk 0:02:08]}  Na6 {[%clk 0:02:39]} 13. O-O {[%clk 0:02:07]}  Nc5 {[%clk 0:02:39]} 14. b3 {[%clk 0:02:02]}  Kh7 {[%clk 0:01:56]} 15. a3 {[%clk 0:01:57]}  Ng8 {[%clk 0:01:54]} 16. b4 {[%clk 0:01:51]}  axb4 {[%clk 0:01:53]} 17. axb4 {[%clk 0:01:51]}  Rxa1 {[%clk 0:01:54]} 18. Qxa1 {[%clk 0:01:52]}  Nd7 {[%clk 0:01:54]} 19. c5 {[%clk 0:01:43]}  f5 {[%clk 0:01:54]} 20. f3 {[%clk 0:01:42]}  h5 {[%clk 0:01:54]} 21. cxd6 {[%clk 0:01:36]}  cxd6 {[%clk 0:01:53]} 22. Nc4 {[%clk 0:01:35]}  Qe7 {[%clk 0:01:36]} 23. Nb5 {[%clk 0:01:32]}  Bh6 {[%clk 0:01:08]} 24. Bxh6 {[%clk 0:01:28]}  Nxh6 {[%clk 0:01:09]} 25. Nbxd6 {[%clk 0:01:24]}  Nf7 {[%clk 0:01:00]} 26. Nxf7 {[%clk 0:01:17]}  Rxf7 {[%clk 0:01:00]} 27. Rc1 {[%clk 0:01:00]}  fxe4 {[%clk 0:00:57]} 28. fxe4 {[%clk 0:01:00]}  Qxb4 {[%clk 0:00:37]} 29. Nxe5 {[%clk 0:00:41]}  Nxe5 {[%clk 0:00:18]} 30. Qxe5 {[%clk 0:00:38]}  Bd7 {[%clk 0:00:19]} 31. Bf3 {[%clk 0:00:35]}  Qb6+ {[%clk 0:00:18]} 32. Kh2 {[%clk 0:00:33]}  Bb5 {[%clk 0:00:16]} 33. Rc8 {[%clk 0:00:31]}  Rg7 {[%clk 0:00:12]} 34. Bxh5 {[%clk 0:00:21]}  Bd7 {[%clk 0:00:09]} 35. Rb8 {[%clk 0:00:18]}  Qf2 {[%clk 0:00:07]} 36. Bf3 {[%clk 0:00:17]}  b5 {[%clk 0:00:06]} 37. d6 {[%clk 0:00:16]}  Qe3 {[%clk 0:00:03]} 38. Qf6 {[%clk 0:00:15]}  Qd3 {[%clk 0:00:02]} 39. Qf8 {[%clk 0:00:15]}  Kh6 {[%clk 0:00:02]} 40. Qh8+ {[%clk 0:00:14]}  Rh7 {[%clk 0:00:02]} 41. Qe5 {[%clk 0:00:14]}  Rg7 {[%clk 0:00:03]} 42. Qf4+ {[%clk 0:00:13]}  g5 {[%clk 0:00:03]} 43. Qf6+ {[%clk 0:00:13]}  Kh7 {[%clk 0:00:02]} 44. e5 {[%clk 0:00:13]}  Bf5 {[%clk 0:00:01]} 45. Qf8 {[%clk 0:00:12]} 1-0


[Site "https://www.chess.com"]

[Event "Titled Tuesday Blitz April 18 Late 2023"]
[White "Mazurkiewicz, Michal"]
[Black "Romero Ruscalleda, Josep"]
[WhiteFideId "1124943"]
[BlackFideId "2231859"]
[WhiteElo "2054"]
[BlackElo "2183"]
[Result "1-0"]
[Round "04"]
[TimeControl "180+2"]
[Date "2023.04.18"]
[WhiteClock "0:00:19"]
[BlackClock "0:00:32"]

1. e4 {[%clk 0:03:00]}  g6 {[%clk 0:03:00]} 2. d4 {[%clk 0:03:00]}  Bg7 {[%clk 0:03:01]} 3. Nc3 {[%clk 0:02:59]}  d6 {[%clk 0:03:01]} 4. f4 {[%clk 0:03:00]}  a6 {[%clk 0:03:02]} 5. Nf3 {[%clk 0:03:00]}  b5 {[%clk 0:03:02]} 6. Bd3 {[%clk 0:02:57]}  Nd7 {[%clk 0:03:01]} 7. O-O {[%clk 0:02:57]}  Bb7 {[%clk 0:03:00]} 8. e5 {[%clk 0:02:56]}  Nh6 {[%clk 0:03:00]} 9. Ne4 {[%clk 0:02:54]}  O-O {[%clk 0:02:56]} 10. c3 {[%clk 0:02:51]}  Rc8 {[%clk 0:02:46]} 11. h3 {[%clk 0:02:48]}  c5 {[%clk 0:02:41]} 12. exd6 {[%clk 0:02:46]}  e6 {[%clk 0:02:37]} 13. Be3 {[%clk 0:02:36]}  Nf5 {[%clk 0:02:35]} 14. Bf2 {[%clk 0:02:34]}  cxd4 {[%clk 0:02:31]} 15. Nxd4 {[%clk 0:02:29]}  Nxd4 {[%clk 0:02:20]} 16. cxd4 {[%clk 0:02:18]}  Nb6 {[%clk 0:02:14]} 17. Rc1 {[%clk 0:01:45]}  Bxe4 {[%clk 0:02:03]} 18. Bxe4 {[%clk 0:01:44]}  Rxc1 {[%clk 0:02:00]} 19. Qxc1 {[%clk 0:01:44]}  Qxd6 {[%clk 0:02:00]} 20. Qc5 {[%clk 0:01:44]}  Nc4 {[%clk 0:01:54]} 21. b3 {[%clk 0:01:35]}  Qxc5 {[%clk 0:01:54]} 22. dxc5 {[%clk 0:01:36]}  Nd2 {[%clk 0:01:52]} 23. Re1 {[%clk 0:01:36]}  Nxe4 {[%clk 0:01:52]} 24. Rxe4 {[%clk 0:01:37]}  Rc8 {[%clk 0:01:52]} 25. a4 {[%clk 0:01:36]}  bxa4 {[%clk 0:01:47]} 26. Rxa4 {[%clk 0:01:35]}  Rc6 {[%clk 0:01:46]} 27. Kf1 {[%clk 0:01:31]}  Bc3 {[%clk 0:01:37]} 28. Ke2 {[%clk 0:01:26]}  a5 {[%clk 0:01:28]} 29. Kd3 {[%clk 0:01:26]}  Bb4 {[%clk 0:01:28]} 30. Kc4 {[%clk 0:01:26]}  Kf8 {[%clk 0:01:23]} 31. Ra1 {[%clk 0:00:54]}  Ke7 {[%clk 0:01:19]} 32. Kb5 {[%clk 0:00:48]}  Rc8 {[%clk 0:01:17]} 33. Rd1 {[%clk 0:00:44]}  f6 {[%clk 0:01:13]} 34. c6 {[%clk 0:00:39]}  e5 {[%clk 0:01:08]} 35. fxe5 {[%clk 0:00:34]}  fxe5 {[%clk 0:01:08]} 36. Bc5+ {[%clk 0:00:34]}  Ke6 {[%clk 0:01:05]} 37. Rd6+ {[%clk 0:00:31]}  Kf5 {[%clk 0:01:01]} 38. Bxb4 {[%clk 0:00:32]}  axb4 {[%clk 0:01:01]} 39. Kxb4 {[%clk 0:00:28]}  e4 {[%clk 0:01:00]} 40. Kc5 {[%clk 0:00:24]}  Ke5 {[%clk 0:00:54]} 41. Rd7 {[%clk 0:00:22]}  e3 {[%clk 0:00:54]} 42. Re7+ {[%clk 0:00:22]}  Kf4 {[%clk 0:00:54]} 43. b4 {[%clk 0:00:22]}  Rf8 {[%clk 0:00:43]} 44. c7 {[%clk 0:00:20]}  g5 {[%clk 0:00:38]} 45. b5 {[%clk 0:00:19]}  g4 {[%clk 0:00:35]} 46. hxg4 {[%clk 0:00:19]}  Kg3 {[%clk 0:00:35]} 47. Rxe3+ {[%clk 0:00:18]}  Kxg2 {[%clk 0:00:34]} 48. Rd3 {[%clk 0:00:18]}  Rc8 {[%clk 0:00:32]} 49. Kc6 {[%clk 0:00:19]} 1-0


[Site "https://www.chess.com"]

[Event "Titled Tuesday Blitz April 18 Late 2023"]
[White "Dahlgren, James Allen"]
[Black "Mackster23"]
[WhiteFideId "22256873"]
[WhiteElo "2185"]
[BlackElo "2425"]
[Result "0-1"]
[Round "04"]
[TimeControl "180+2"]
[Date "2023.04.18"]
[WhiteClock "0:00:53"]
[BlackClock "0:00:08"]

1. e4 {[%clk 0:02:59]}  e6 {[%clk 0:03:00]} 2. d4 {[%clk 0:03:00]}  d5 {[%clk 0:03:01]} 3. e5 {[%clk 0:03:00]}  c5 {[%clk 0:03:01]} 4. c3 {[%clk 0:03:01]}  Nc6 {[%clk 0:03:01]} 5. Nf3 {[%clk 0:03:01]}  Qb6 {[%clk 0:03:02]} 6. a3 {[%clk 0:03:01]}  Nh6 {[%clk 0:03:00]} 7. Be2 {[%clk 0:02:56]}  cxd4 {[%clk 0:02:58]} 8. cxd4 {[%clk 0:02:56]}  Nf5 {[%clk 0:02:58]} 9. O-O {[%clk 0:02:47]}  Nfxd4 {[%clk 0:02:46]} 10. Nxd4 {[%clk 0:02:46]}  Nxd4 {[%clk 0:02:47]} 11. Bd3 {[%clk 0:02:44]}  Nc6 {[%clk 0:02:40]} 12. Nc3 {[%clk 0:02:43]}  Bd7 {[%clk 0:02:31]} 13. Qe2 {[%clk 0:02:40]}  Nd4 {[%clk 0:02:21]} 14. Qg4 {[%clk 0:02:38]}  Nb3 {[%clk 0:02:12]} 15. Rb1 {[%clk 0:02:35]}  O-O-O {[%clk 0:01:50]} 16. Kh1 {[%clk 0:02:34]}  h5 {[%clk 0:01:32]} 17. Qh3 {[%clk 0:02:28]}  Kb8 {[%clk 0:01:26]} 18. f4 {[%clk 0:02:27]}  g6 {[%clk 0:01:16]} 19. Ne2 {[%clk 0:02:21]}  Bc5 {[%clk 0:01:11]} 20. Bc2 {[%clk 0:02:13]}  Nxc1 {[%clk 0:01:11]} 21. Nxc1 {[%clk 0:02:07]}  Rc8 {[%clk 0:01:09]} 22. b4 {[%clk 0:02:05]}  Be3 {[%clk 0:01:02]} 23. Bd3 {[%clk 0:01:54]}  Rc3 {[%clk 0:00:54]} 24. Rd1 {[%clk 0:01:44]}  Ba4 {[%clk 0:00:36]} 25. Ne2 {[%clk 0:01:41]}  Rxa3 {[%clk 0:00:34]} 26. Qf3 {[%clk 0:01:14]}  Bxd1 {[%clk 0:00:31]} 27. Rxd1 {[%clk 0:01:15]}  Rc8 {[%clk 0:00:25]} 28. Qf1 {[%clk 0:01:14]}  Bd4 {[%clk 0:00:21]} 29. Bxg6 {[%clk 0:01:05]}  fxg6 {[%clk 0:00:18]} 30. Nxd4 {[%clk 0:01:05]}  Re3 {[%clk 0:00:16]} 31. b5 {[%clk 0:01:00]}  Re4 {[%clk 0:00:16]} 32. Qd3 {[%clk 0:00:57]}  Rxd4 {[%clk 0:00:12]} 33. Qe2 {[%clk 0:00:57]}  Rxd1+ {[%clk 0:00:11]} 34. Qxd1 {[%clk 0:00:58]}  Rc4 {[%clk 0:00:09]} 35. h3 {[%clk 0:00:56]}  Qd4 {[%clk 0:00:09]} 36. Qe1 {[%clk 0:00:54]}  Qxf4 {[%clk 0:00:08]} 37. Qe2 {[%clk 0:00:52]}  Rc1+ {[%clk 0:00:08]} 38. Qf1 {[%clk 0:00:53]}  Rxf1# {[%clk 0:00:08]} 0-1


[Site "https://www.chess.com"]

[Event "Titled Tuesday Blitz April 18 Late 2023"]
[White "Gatterer, Florian"]
[Black "Chemin, Justo Reinaldo"]
[WhiteFideId "811688"]
[BlackFideId "2101580"]
[WhiteElo "2221"]
[BlackElo "1940"]
[Result "1-0"]
[Round "04"]
[TimeControl "180+2"]
[Date "2023.04.18"]
[WhiteClock "0:00:47"]
[BlackClock "0:00:25"]

1. Nf3 {[%clk 0:03:00]}  d5 {[%clk 0:02:59]} 2. g3 {[%clk 0:02:58]}  c6 {[%clk 0:02:59]} 3. Bg2 {[%clk 0:02:57]}  Nf6 {[%clk 0:02:59]} 4. c4 {[%clk 0:02:53]}  dxc4 {[%clk 0:02:57]} 5. Na3 {[%clk 0:02:49]}  b5 {[%clk 0:02:52]} 6. Ne5 {[%clk 0:02:33]}  Nd5 {[%clk 0:02:37]} 7. O-O {[%clk 0:02:21]}  f6 {[%clk 0:02:30]} 8. Nf3 {[%clk 0:02:17]}  e5 {[%clk 0:02:27]} 9. b3 {[%clk 0:02:14]}  cxb3 {[%clk 0:02:21]} 10. Qxb3 {[%clk 0:02:13]}  Be6 {[%clk 0:02:11]} 11. Qb1 {[%clk 0:02:13]}  Nd7 {[%clk 0:02:09]} 12. d4 {[%clk 0:02:12]}  Nc3 {[%clk 0:01:42]} 13. Qc2 {[%clk 0:02:03]}  b4 {[%clk 0:01:42]} 14. dxe5 {[%clk 0:02:02]}  fxe5 {[%clk 0:01:23]} 15. Bb2 {[%clk 0:01:56]}  bxa3 {[%clk 0:01:12]} 16. Bxc3 {[%clk 0:01:56]}  Bd6 {[%clk 0:01:10]} 17. Rfd1 {[%clk 0:01:44]}  Qe7 {[%clk 0:01:10]} 18. Qd2 {[%clk 0:01:29]}  Bc7 {[%clk 0:01:04]} 19. Ng5 {[%clk 0:01:29]}  Bc4 {[%clk 0:00:25]} 20. Bxc6 {[%clk 0:01:23]}  Rd8 {[%clk 0:00:25]} 21. Bb4 {[%clk 0:00:47]} 1-0


[Site "https://www.chess.com"]